bitfinex/quotes_ETHUSD_20250804
["timestamp","ask_amount","ask_price","bid_price","bid_amount"]
[1754308717507,1.54871137,3560.1,3559.5,4.301]
[1754308717802,1.5136,3560.0,3559.6,0.1408]
[1754308718206,1.5136,3559.9,3559.6,0.1408]
[1754308718512,1.5136,3559.9,3559.6,2.95004927]
[1754308718714,1.5136,3559.8,3559.6,0.1408]
[1754308718921,1.5136,3559.8,3559.4,4.3]
[1754308719105,1.5136,3559.7,3559.4,7.25025588]
[1754308719304,1.5136,3559.6,3559.4,7.25025588]
[1754308719506,1.5136,3559.5,3559.4,7.25025588]
[1754308719720,0.1408,3559.9,3559.5,2.8093674]
[1754308719923,0.1408,3559.9,3559.4,4.4408]
[1754308720088,0.1408,3559.9,3559.5,2.80937974]
[1754308720288,1.5136,3559.8,3559.5,2.80937974]
[1754308720490,1.5136,3559.7,3559.5,2.80937974]
[1754308720687,1.0751,3559.6,3559.4,4.4408]
[1754308721027,0.4385,3559.5,3559.4,7.25026226]
[1754308721325,1.5136,3559.5,3559.4,7.25026226]
[1754308721803,1.5136,3559.5,3559.4,2.95026226]
[1754308724227,1.5136,3559.5,3559.4,2.95226226]
[1754308728260,1.5136,3559.5,3559.4,7.25026226]
[1754308730076,5.7936,3559.5,3559.4,7.25026226]
[1754308732072,5.7936,3559.5,3559.4,2.95226226]
[1754308735183,5.7936,3559.5,3559.4,0.1428]
[1754308735383,6.93516,3559.5,3559.1,7.2424556]
[1754308735566,1.5136,3559.4,3559.1,0.1408]
[1754308736274,4.1372,3559.5,3559.3,2.8095412]
[1754308737071,1.5136,3559.4,3559.2,2.80958755]
[1754308737462,1.5136,3559.4,3559.3,2.8095412]
[1754308737661,1.5136,3559.3,3559.2,2.80958755]
[1754308738879,5.6508,3559.3,3559.2,2.80958755]
[1754308739291,5.6508,3559.3,3559.1,2.95047993]
[1754308739496,1.5136,3559.2,3559.1,2.95047993]
[1754308740392,1.5136,3559.2,3559.1,0.1408]
[1754308740564,1.5136,3559.2,3559.1,2.95049908]
[1754308740773,1.5136,3559.2,3559.1,0.1408]
[1754308741159,1.5136,3559.2,3559.1,2.95049908]
[1754308742804,4.1372,3559.3,3559.2,2.80962013]
[1754308743482,5.3112,3559.3,3559.2,2.80962013]
[1754308743875,5.7764,3559.3,3559.2,2.80962013]
[1754308744087,4.1372,3559.3,3559.2,2.80962013]
[1754308744273,4.1372,3559.3,3559.2,10.23842013]
[1754308745907,5.7764,3559.3,3559.2,10.23842013]
[1754308746709,5.7764,3559.3,3559.2,5.95042013]
[1754308747071,1.6392,3559.3,3559.2,5.95042013]
[1754308747270,0.001,3559.5,3559.4,2.80946226]
[1754308747474,0.001,3559.5,3559.4,5.80946226]
[1754308747674,0.001,3559.5,3559.4,5.95026226]
[1754308748077,1.175,3559.5,3559.4,10.23826226]
[1754308748475,0.001,3559.5,3559.4,10.23826226]
[1754308752984,4.1382,3559.5,3559.4,10.23826226]
[1754308755089,5.7774,3559.5,3559.4,10.23826226]
[1754308755400,5.7774,3559.5,3559.4,7.23826226]
[1754308756636,5.7774,3559.5,3559.4,2.95026226]
[1754308756835,5.7774,3559.5,3559.4,2.80946226]
[1754308759392,4.1382,3559.5,3559.4,2.80946226]
[1754308759693,4.1382,3559.5,3559.4,2.95026226]
[1754308760288,5.3122,3559.5,3559.4,2.95026226]
[1754308760514,5.7774,3559.5,3559.4,2.95026226]
[1754308761991,4.1382,3559.5,3559.4,2.95026226]
[1754308763740,4.06528819,3559.5,3559.4,2.95026226]
[1754308764729,1.175,3559.9,3559.8,2.80914658]
[1754308764730,0.001,3559.9,3559.8,2.80914658]
[1754308765102,1.6402,3559.9,3559.8,2.80914658]
[1754308765714,1.6402,3559.9,3559.8,2.94994658]
[1754308767106,0.001,3559.9,3559.8,2.94994658]
[1754308767443,1.175,3559.9,3559.8,5.94994658]
[1754308767632,1.6402,3559.9,3559.8,5.94994658]
[1754308769000,1.6402,3559.9,3559.8,2.94994658]
[1754308770302,1.6402,3559.9,3559.8,7.23794658]
[1754308773658,1.6402,3559.9,3559.8,7.09514658]
[1754308775144,1.6402,3559.9,3559.8,2.80914658]
[1754308779669,0.001,3559.9,3559.8,2.80914658]
[1754308779834,0.001,3559.9,3559.8,2.94994658]
[1754308780172,1.1848,3559.9,3559.8,2.94994658]
[1754308780534,1.6285,3559.9,3559.8,2.94994658]
[1754308784276,1.6285,3559.9,3559.8,2.80914658]
[1754308790973,1.6285,3559.9,3559.8,2.81114658]
[1754308793499,0.001,3559.9,3559.8,2.81114658]
[1754308794334,1.1848,3559.9,3559.8,2.81114658]
[1754308794518,1.6285,3559.9,3559.8,2.81114658]
[1754308798039,1.7693,3559.9,3559.8,0.002]
[1754308798343,2.35995,3559.9,3559.8,0.002]
[1754308800337,2.35995,3559.9,3559.8,2.81114658]
[1754308800338,0.001,3559.9,3559.8,2.81114658]
[1754308800915,1.1848,3559.9,3559.8,2.81114658]
[1754308801109,0.001,3559.9,3559.8,2.81114658]
[1754308801539,0.001,3559.9,3559.8,6.30704658]
[1754308802650,0.001,3559.9,3559.8,5.95194658]
[1754308802865,0.001,3559.9,3559.8,6.30704658]
[1754308803173,0.001,3560.3,3560.2,5.80883096]
[1754308803487,0.001,3560.3,3560.2,10.22563096]
[1754308804136,0.001,3560.3,3560.2,10.58073096]
[1754308805250,0.001,3560.3,3560.2,10.22563096]
[1754308806451,0.001,3560.3,3560.2,10.58073096]
[1754308806650,1e-08,3560.3,3560.2,10.58073096]
[1754308806853,1e-08,3560.3,3560.2,11.13073096]
[1754308811165,1e-08,3560.8,3560.4,5.80867318]
[1754308811390,1e-08,3560.8,3560.7,5.80843654]
[1754308811590,1e-08,3560.8,3560.7,10.22223654]
[1754308812799,1e-08,3560.8,3560.7,10.43556443]
[1754308814521,1.90000001,3560.8,3560.7,6.16256443]
[1754308816831,3.50670001,3560.8,3560.7,6.16256443]
[1754308819050,0.88634452,3560.8,3560.7,6.16256443]
[1754308819335,0.001,3563.4,3562.3,2.80711841]
[1754308819494,1.6067,3562.6,3562.0,2.80738558]
[1754308819698,1.6067,3562.6,3562.2,0.14]
[1754308819918,2.75861903,3562.7,3562.4,2.80703574]
[1754308820118,1.6067,3562.5,3562.4,2.80703574]
[1754308820441,3.03458093,3562.7,3562.1,0.14]
[1754308820600,0.03508673,3562.6,3562.4,2.80709533]
[1754308820800,1.6067,3562.5,3562.4,2.80709533]
[1754308821001,3.03458093,3562.7,3562.4,2.80709533]
[1754308821202,1.6067,3562.5,3562.2,2.80725394]
[1754308821446,3.03458093,3562.7,3562.1,2.94730704]
[1754308821723,1.6067,3562.4,3562.3,2.80712161]
[1754308821934,1.6067,3562.4,3562.3,9.80712161]
[1754308822134,1.6067,3562.4,3562.1,3.14]
[1754308822444,3.03458093,3562.7,3562.3,2.80710598]
[1754308822601,0.30345809,3562.6,3562.2,2.80718398]
[1754308822802,1.6067,3562.5,3562.2,2.80718398]
[1754308823001,0.30345809,3562.6,3562.3,2.80716839]
[1754308823216,1.6067,3562.4,3562.2,2.80722077]
[1754308823446,1.6067,3562.3,3562.1,0.14]
[1754308823750,0.14,3562.2,3561.6,2.80772686]
[1754308823966,0.14,3562.0,3561.6,2.80767942]
[1754308824344,1.64179362,3561.9,3560.7,3.02172809]
[1754308824654,1.7467,3561.8,3561.6,2.80772079]
[1754308825007,0.17467,3561.7,3561.6,2.80772079]
[1754308825169,0.17467,3561.7,3561.5,2.80778243]
[1754308825367,1.6067,3561.7,3561.2,2.80804164]
[1754308827692,0.14,3561.6,3561.5,2.80780569]
[1754308828225,1.7467,3561.6,3561.5,2.80780569]
[1754308828562,1.6067,3561.6,3561.5,2.80780569]
[1754308830727,1.7467,3561.8,3561.6,2.80767537]
[1754308830928,1.6067,3561.7,3561.6,2.80767537]
[1754308831554,1.6067,3561.7,3561.1,0.1408]
[1754308831861,0.14,3561.8,3561.6,2.80772686]
[1754308832460,0.14,3561.8,3561.7,2.80764803]
[1754308832626,0.14,3561.8,3561.4,2.80786977]
[1754308832824,0.14,3561.8,3561.5,2.80775085]
[1754308833029,1.5932,3561.7,3561.5,2.80775085]
[1754308833329,1.5932,3561.6,3561.5,2.80775085]
[1754308833529,1.5932,3561.6,3561.3,2.80796338]
[1754308833761,1.5932,3561.6,3561.2,0.1408]
[1754308833762,1.5932,3561.5,3561.4,2.80787843]
[1754308834368,1.5932,3561.5,3561.2,2.94880886]
[1754308834564,0.14,3561.8,3561.5,2.80779864]
[1754308834765,0.53758868,3561.8,3561.5,2.80779864]
[1754308834934,3.20518913,3561.8,3561.2,2.80799282]
[1754308835277,0.14,3561.6,3561.2,2.80799282]
[1754308835680,1.5932,3561.5,3561.4,2.80788453]
[1754308835982,0.4352,3561.7,3561.5,2.80780569]
[1754308836161,0.4342,3561.6,3561.4,2.80786813]
[1754308836366,1.5932,3561.5,3561.4,2.80786813]
[1754308836541,1.5932,3561.5,3561.3,2.80792943]
[1754308836741,1.5932,3561.4,3561.3,2.80792943]
[1754308839176,1.5932,3561.4,3561.1,0.1408]
[1754308839375,1.159,3561.3,3561.1,0.1408]
[1754308839578,1.159,3561.3,3561.2,2.80802836]
[1754308839781,1.159,3561.3,3560.7,0.20680658]
[1754308839981,1.71318891,3561.3,3560.9,2.80827834]
[1754308840145,0.4342,3561.2,3560.8,0.1408]
[1754308840479,1.159,3561.1,3560.8,0.1408]
[1754308840685,0.55418891,3561.3,3561.1,2.80811222]
[1754308840686,0.14,3561.3,3561.1,2.80811222]
[1754308841173,0.4342,3561.2,3560.8,0.1408]
[1754308841389,0.4342,3561.1,3560.8,2.94913936]
[1754308841548,0.4342,3561.0,3560.9,2.8082788]
[1754308842087,1.5932,3561.0,3560.8,2.80832236]
[1754308842242,1.5932,3561.0,3560.7,0.34800829]
[1754308842243,1.5932,3560.9,3560.7,0.34800829]
[1754308842578,1.5932,3560.9,3560.8,2.80835767]
[1754308845380,1.5932,3560.9,3560.7,2.80840673]
[1754308845567,2.80781055,3561.5,3560.8,2.80828713]
[1754308845771,2.80781055,3561.5,3560.3,3.002]
[1754308845772,0.28439062,3561.4,3561.1,2.80812007]
[1754308845947,0.001,3561.7,3561.1,2.80812007]
[1754308846154,2.80785803,3561.5,3560.8,2.80828292]
[1754308846387,2.80785803,3561.5,3560.9,2.80827809]
[1754308846591,2.80785803,3561.5,3560.6,0.21104548]
[1754308846592,1.5932,3561.4,3561.0,2.80818789]
[1754308846884,2.0332963,3561.3,3560.9,2.8082631]
[1754308847051,0.4400963,3561.3,3560.9,2.8082631]
[1754308847251,0.4400963,3561.3,3560.8,2.80833262]
[1754308847252,1.5932,3561.2,3560.8,2.80833262]
[1754308847448,1.5932,3561.1,3560.3,3.002]
[1754308847681,1.5932,3561.0,3560.7,2.80840541]
[1754308847873,1.62830348,3560.9,3560.3,0.2122244]
[1754308848068,1.62830348,3560.9,3560.4,2.80867318]
[1754308848069,1.5932,3560.9,3560.4,2.80867318]
[1754308848271,1.5932,3560.8,3560.5,2.80856628]
[1754308848463,1.5932,3560.7,3560.5,2.80856628]
[1754308848663,0.4400963,3561.3,3560.3,0.002]
[1754308848854,1.20500712,3561.2,3560.6,2.80844112]
[1754308849054,4.01310957,3561.2,3560.6,2.80844112]
[1754308849250,4.40133491,3561.1,3560.5,2.80855857]
[1754308849454,1.20500712,3561.2,3560.5,2.80855857]
[1754308849652,1.5932,3561.0,3560.3,0.002]
[1754308849880,1.5932,3560.9,3560.3,0.002]
[1754308850281,1.20500712,3561.2,3560.3,0.002]
[1754308850482,1.159,3561.0,3560.9,2.80826092]
[1754308850682,1.02851853,3562.0,3560.3,2.81069885]
[1754308850683,1.159,3561.3,3560.5,2.80859429]
[1754308851000,1.159,3561.3,3561.2,2.80804223]
[1754308851296,1.5932,3561.3,3561.2,2.80804223]
[1754308851475,0.4342,3561.6,3560.7,2.80840958]
[1754308851674,1.159,3561.5,3561.2,2.80798401]
[1754308851871,0.15942,3561.4,3561.3,2.80796338]
[1754308852075,0.001,3561.7,3561.4,2.80785714]
[1754308852076,0.4352,3561.7,3561.4,2.80785714]
[1754308852395,1.159,3561.6,3561.4,2.80785714]
[1754308852561,1.159,3561.5,3560.9,2.8082788]
[1754308852766,1.5942,3561.7,3560.9,2.8082788]
[1754308853283,1.5942,3561.7,3561.6,2.80772686]
[1754308853456,1.16,3561.7,3561.6,2.80772686]
[1754308853662,1.16,3561.7,3561.4,2.80780996]
[1754308853868,1.5932,3561.6,3561.4,2.80780996]
[1754308854097,0.001,3561.7,3561.2,2.80798337]
[1754308854301,1.5932,3561.6,3561.5,2.80780569]
[1754308854498,1.5932,3561.6,3561.4,2.80788268]
[1754308854658,1.5932,3561.5,3561.4,2.80788268]
[1754308855371,1.5932,3561.5,3561.1,2.80810261]
[1754308855372,1.89262,3561.5,3561.1,2.80810261]
[1754308855600,0.14,3561.3,3561.2,2.80804223]
[1754308855898,1.7332,3561.3,3560.9,2.8082619]
[1754308856200,1.5932,3561.2,3561.1,2.80806771]
[1754308857288,1.5932,3561.2,3560.9,2.8082619]
[1754308857611,0.14,3561.3,3561.2,2.80804223]
[1754308858708,0.14,3561.3,3561.0,2.80819994]
[1754308858908,0.14,3561.3,3561.2,2.80804223]
[1754308860116,0.4342,3561.5,3560.8,2.95112222]
[1754308860316,1.159,3561.4,3560.8,0.1428]
[1754308860518,0.4342,3561.3,3560.8,0.1428]
[1754308860719,0.1408,3560.9,3560.8,0.002]
[1754308861092,1.6923,3560.9,3560.8,0.002]
[1754308862283,1.6923,3560.9,3560.8,2.81035767]
[1754308862713,1.6923,3560.9,3560.8,0.002]
[1754308862889,1.6923,3560.9,3560.8,2.81035767]
[1754308863086,0.1408,3560.9,3560.8,2.81035767]
[1754308863705,2.80874578,3561.6,3560.8,2.81035767]
[1754308863706,1.1187,3561.1,3561.0,2.80819994]
[1754308864033,1.5515,3561.1,3561.0,2.80819994]
[1754308864189,1.1187,3561.1,3561.0,2.80819994]
[1754308864391,1.5515,3561.5,3561.4,2.80788453]
[1754308864704,1.1187,3561.5,3561.4,2.80788453]
[1754308864887,0.001,3561.6,3561.5,2.80780569]
[1754308865241,1.5515,3561.5,3561.2,2.80799399]
[1754308865453,1.5515,3561.4,3561.1,2.80809118]
[1754308865741,1.5515,3561.3,3561.1,2.80809118]
[1754308865937,0.43610851,3561.5,3560.8,0.002]
[1754308865938,1.58660052,3561.2,3560.8,0.002]
[1754308866146,1.58660052,3561.2,3560.9,2.8082788]
[1754308866446,1.5515,3561.1,3560.8,0.002]
[1754308866631,0.15515,3561.0,3560.8,2.81033494]
[1754308866806,1.5515,3561.0,3560.8,2.81033494]
[1754308867007,1.5515,3560.9,3560.8,0.002]
[1754308867341,1.5515,3560.9,3560.8,2.81035767]
[1754308868413,1.5515,3560.9,3560.7,2.80841408]
[1754308868637,2.80796849,3561.3,3560.8,2.80835447]
[1754308868852,1.72257528,3561.2,3560.8,2.80835447]
[1754308869370,1.5515,3561.1,3560.8,2.80835447]
[1754308869728,1.5515,3561.0,3560.8,2.80835447]
[1754308870028,1.5515,3560.9,3560.7,2.80837878]
[1754308870232,1.5515,3560.9,3560.6,2.80850671]
[1754308870444,1.72257528,3561.2,3560.7,2.80843654]
[1754308870626,1.5515,3560.8,3560.7,2.80843654]
[1754308872455,1.5515,3560.8,3560.7,2.77843654]
[1754308873022,1.5515,3561.4,3560.3,0.21133889]
[1754308873379,1.1187,3561.3,3561.1,2.80806638]
[1754308873556,2.80873159,3561.6,3561.1,2.80806638]
[1754308873866,1.5515,3561.2,3561.1,2.80806638]
[1754308874363,1.1187,3561.2,3561.1,2.80806638]
[1754308874567,0.14,3561.3,3561.2,2.80804223]
[1754308874862,0.001,3561.6,3561.5,2.80780569]
[1754308875228,1.1197,3561.6,3561.5,2.80780569]
[1754308875758,0.001,3561.6,3561.5,2.80780569]
[1754308877041,1.5525,3561.6,3561.3,0.14]
[1754308877240,1.72085,3561.5,3561.3,2.80796124]
[1754308877458,1.5515,3561.4,3561.3,2.80796124]
[1754308877780,1.5515,3561.4,3561.2,2.80801427]
[1754308878078,1.1187,3561.3,3561.2,2.80801427]
[1754308878645,0.5728,3561.5,3561.2,2.80801427]
[1754308878851,1.1187,3561.3,3561.1,2.80809363]
[1754308879237,1.5515,3561.2,3561.1,2.80809363]
[1754308880936,1.5515,3561.2,3560.9,2.9490663]
[1754308881132,1.6915,3561.5,3561.1,2.80807225]
[1754308881465,0.14,3561.5,3561.4,2.80788453]
[1754308882031,0.001,3561.6,3561.5,2.80780569]
[1754308883267,0.001,3561.6,3561.2,0.1408]
[1754308883473,1.5515,3561.5,3561.1,2.80805718]
[1754308883671,1.5515,3561.4,3561.1,2.80807027]
[1754308883874,1.5515,3561.3,3561.0,2.80818992]
[1754308884168,1.5515,3561.2,3560.4,0.002]
[1754308884371,1.5515,3561.2,3560.7,2.80838122]
[1754308884540,1.64090364,3561.1,3560.7,2.80838122]
[1754308884735,1.5515,3561.0,3560.7,2.80843126]
[1754308884948,1.1187,3560.9,3560.4,0.002]
[1754308885277,1.5515,3560.9,3560.5,2.80859429]
[1754308885487,1.5515,3560.9,3560.4,2.81060599]
[1754308885488,0.46790447,3560.8,3560.4,2.81060599]
[1754308885780,0.43948709,3560.7,3560.4,0.002]
[1754308885960,0.03510644,3560.6,3560.4,2.81064002]
[1754308886472,1.5515,3560.5,3560.4,2.81064002]
[1754308886641,4.28,3560.5,3560.4,2.81064002]
[1754308887473,5.3987,3560.5,3560.4,2.81064002]
[1754308888274,4.28,3560.5,3560.4,2.81064002]
[1754308888662,5.3987,3560.5,3560.4,2.81064002]
[1754308889083,5.8315,3560.5,3560.4,2.81064002]
[1754308889574,5.8315,3560.5,3560.4,0.002]
[1754308889760,6.69548768,3560.5,3560.4,0.002]
[1754308890751,4.276,3560.0,3559.8,2.81109376]
[1754308891076,5.8458,3559.9,3559.8,0.002]
[1754308891678,5.8458,3559.9,3559.4,2.80944522]
[1754308891844,1.5304,3559.8,3559.4,2.80944522]
[1754308892045,1.5304,3559.7,3559.2,2.80961183]
[1754308892243,4.276,3559.9,3559.4,2.80938963]
[1754308892455,4.276,3559.9,3559.3,3.0]
[1754308892780,4.276,3559.9,3559.8,2.80914658]
[1754308893667,5.3553,3559.9,3559.8,2.80914658]
[1754308893863,4.276,3559.9,3559.8,2.80914658]
[1754308894277,5.3553,3559.9,3559.7,2.94999929]
[1754308894478,1.5304,3559.8,3559.6,2.80925618]
[1754308894697,0.1408,3559.7,3559.2,0.1408]
[1754308894842,5.8064,3559.6,3559.2,2.80961763]
[1754308895045,5.8064,3559.6,3559.3,2.80952538]
[1754308895046,1.5304,3559.5,3559.3,2.80952538]
[1754308895703,1.5304,3559.4,3559.3,2.80952538]
[1754308895988,1.0793,3559.4,3559.3,2.80948402]
[1754308896195,1.5304,3559.4,3559.3,2.80948402]
[1754308896758,0.1408,3559.5,3559.4,2.80946226]
[1754308897160,4.276,3559.6,3559.5,2.80938334]
[1754308897686,4.276,3559.6,3559.5,3.13118334]
[1754308897882,2.51587704,3560.0,3559.9,2.80906767]
[1754308898178,1.13509296,3560.0,3559.9,6.13086767]
[1754308898378,1.0793,3561.2,3561.0,2.80815312]
[1754308898579,4.0704,3561.1,3560.8,2.80835767]
[1754308898762,4.2112,3561.1,3560.8,2.80835767]
[1754308898963,1.0793,3561.0,3560.6,2.80851541]
[1754308899291,1.0793,3561.0,3560.9,2.8082788]
[1754308900069,1.0793,3561.0,3560.6,2.8084494]
[1754308900272,1.0793,3560.9,3560.5,0.1408]
[1754308900473,1.0793,3560.9,3559.0,2.81171115]
[1754308900474,16.90430391,3560.8,3559.0,2.81171115]
[1754308900673,0.1408,3560.2,3559.4,2.95021361]
[1754308900884,4.0704,3560.7,3559.0,0.002]
[1754308900885,0.1408,3559.9,3559.0,0.002]
[1754308901086,0.03511433,3559.8,3559.2,2.80956477]
[1754308901259,0.1408,3559.5,3559.2,2.80956477]
[1754308901466,2.84463801,3559.4,3559.2,7.0]
[1754308901667,1.9556638,3559.3,3559.2,7.0]
[1754308902100,1.9556638,3559.3,3559.0,0.002]
[1754308902396,0.1408,3559.1,3559.0,0.002]
[1754308902906,1.6712,3559.1,3559.0,2.81177802]
[1754308903303,2.55261228,3559.7,3559.2,0.9966]
[1754308903304,2.80939392,3559.5,3559.2,0.9966]
[1754308903505,0.1408,3559.3,3559.2,1.4043]
[1754308903707,0.1408,3559.3,3559.0,0.0013]
[1754308903913,0.1408,3559.1,3559.0,2.8110733]
[1754308904116,0.1408,3559.1,3559.0,0.0013]
[1754308904312,3.62653195,3559.5,3559.2,3.6429]
[1754308904484,3.70315543,3559.4,3559.2,0.1408]
[1754308904689,0.1408,3559.3,3559.2,0.1408]
[1754308905098,0.1408,3559.3,3559.0,0.0013]
[1754308905337,0.1408,3559.1,3558.7,3.0]
[1754308905607,1.0793,3559.0,3558.8,2.80993593]
[1754308905812,1.0793,3559.0,3558.7,5.81001086]
[1754308906010,0.1408,3559.1,3558.9,2.80985697]
[1754308906177,0.1408,3559.1,3559.0,2.80977802]
[1754308906809,0.1408,3559.1,3558.8,2.80992413]
[1754308907011,0.1408,3559.1,3559.0,2.80977802]
[1754308908183,0.1408,3559.1,3558.8,2.80992413]
[1754308908385,0.1408,3559.1,3559.0,2.80977802]
[1754308909117,3.46503387,3559.5,3559.2,2.80956936]
[1754308909516,3.46503387,3559.5,3558.7,3.1408]
[1754308909517,0.1408,3559.3,3558.7,0.1408]
[1754308909723,0.1408,3559.1,3558.5,0.1408]
[1754308910028,2.80997643,3558.8,3557.8,2.81066703]
[1754308910321,0.1408,3558.4,3558.0,2.81049252]
[1754308910522,1.0793,3558.3,3557.9,0.1408]
[1754308910725,1.0793,3558.3,3556.0,3.65652966]
[1754308910726,1.11443012,3558.2,3557.1,2.8112465]
[1754308910887,1.5304,3558.2,3557.7,2.81078237]
[1754308911089,0.1408,3558.0,3557.7,2.81078237]
[1754308911293,1.6712,3558.0,3557.8,2.81071743]
[1754308911517,1.6712,3558.0,3557.7,2.81078166]
[1754308912724,0.1408,3558.3,3557.9,2.81064672]
[1754308912893,1.0793,3558.2,3557.8,2.81070167]
[1754308913094,1.5655311,3558.1,3557.8,2.81070167]
[1754308913318,1.5304,3558.0,3557.7,2.81079674]
[1754308913531,0.29384,3558.0,3557.4,0.1408]
[1754308913686,2.81012624,3558.6,3556.2,2.81192979]
[1754308913687,0.1408,3557.7,3557.2,0.1408]
[1754308914033,0.1408,3557.3,3557.1,2.81122743]
[1754308914625,0.1408,3557.3,3557.1,2.81123026]
[1754308915338,0.1408,3557.3,3557.2,2.81119982]
[1754308915838,2.20396528,3557.8,3557.0,3.96194435]
[1754308915997,2.20396528,3557.8,3557.5,2.81091157]
[1754308916197,2.20396528,3557.8,3557.4,2.81104177]
[1754308916198,0.1408,3557.5,3557.4,2.81104177]
[1754308916421,2.6808,3557.5,3557.4,2.81104177]
[1754308918130,2.6808,3557.5,3557.0,1.2914]
[1754308918131,2.6808,3557.5,3557.3,2.81111136]
[1754308918297,2.6808,3557.5,3557.0,0.1408]
[1754308918298,1.5304,3557.4,3557.0,0.1408]
[1754308918498,1.5304,3557.4,3557.2,2.81119461]
[1754308918694,0.4511,3557.4,3557.2,2.81119461]
[1754308918895,1.5304,3557.3,3557.0,0.1408]
[1754308919120,1.5304,3557.3,3557.1,2.81123105]
[1754308919444,1.2201,3557.2,3557.1,2.81123105]
[1754308919734,1.2201,3557.2,3556.4,0.4511]
[1754308919735,1.95152,3557.2,3556.1,0.002]
[1754308919905,0.55,3557.0,3556.1,0.002]
[1754308920098,2.81154427,3556.8,3556.1,2.81401112]
[1754308920299,2.54,3557.0,3556.1,0.002]
[1754308920521,2.54,3557.0,3556.3,2.81191125]
[1754308920720,2.54,3557.0,3556.1,0.4531]
[1754308920721,2.54,3557.0,3556.7,2.81154254]
[1754308921031,1.0793,3556.9,3556.1,0.002]
[1754308921252,1.95629703,3557.1,3556.2,0.4511]
[1754308921528,1.95629703,3557.1,3557.0,2.81135788]
[1754308922110,1.0789,3557.6,3556.5,0.4511]
[1754308922632,1.0789,3557.6,3557.4,2.81099255]
[1754308922829,2.37786331,3557.8,3557.3,2.81109362]
[1754308923031,14.32919944,3557.4,3556.1,0.002]
[1754308923233,2.81158992,3556.8,3556.1,2.81399943]
[1754308923429,2.81158992,3556.8,3556.6,0.002]
[1754308923609,2.08469953,3556.7,3556.6,0.002]
[1754308923806,1.5224,3556.7,3556.6,0.002]
[1754308925231,3.32406292,3556.7,3556.2,2.81199032]
[1754308925445,1.80166292,3556.7,3556.6,2.81167407]
[1754308925647,1.80166292,3556.7,3556.5,2.8117073]
[1754308926053,1.80166292,3556.7,3556.6,2.81167407]
[1754308926255,4.34166292,3556.7,3556.6,2.81167407]
[1754308926467,4.34166292,3556.7,3556.6,3.26277407]
[1754308927049,1.80166292,3556.7,3556.6,6.65407407]
[1754308927250,1.01768997,3558.0,3557.6,2.81088374]
[1754308927449,1.01768997,3558.0,3557.9,2.81064672]
[1754308928915,1.01768997,3558.0,3557.8,2.81066774]
[1754308929210,2.09658997,3558.0,3557.9,2.81064672]
[1754308929534,5.35067131,3558.0,3557.3,2.81104978]
[1754308929733,0.1408,3557.8,3557.5,2.81091394]
[1754308930069,1.0789,3557.7,3557.4,2.81102563]
[1754308930234,0.5843,3557.8,3557.4,2.81102563]
[1754308930549,1.0789,3557.6,3557.4,2.81102593]
[1754308930854,0.1408,3557.8,3557.3,0.1408]
[1754308931155,1.2197,3557.8,3557.5,2.81090871]
[1754308931359,1.0789,3557.7,3557.4,2.81101968]
[1754308931525,1.0789,3557.6,3557.3,2.95188898]
[1754308931736,1.0789,3557.5,3557.3,2.95188898]
[1754308932045,1.0789,3557.4,3557.2,2.81118982]
[1754308933364,1.5224,3557.3,3556.5,3.4511]
[1754308933522,2.54,3557.2,3557.0,0.1408]
[1754308933721,1.0789,3557.1,3557.0,3.0]
[1754308933956,2.54,3557.2,3557.1,2.81127885]
[1754308934288,2.54,3557.2,3557.1,6.74227885]
[1754308934623,2.54,3557.2,3557.1,6.88307885]
[1754308934955,1.01768997,3558.0,3557.9,2.81064672]
[1754308935317,1.01768997,3558.0,3557.9,2.95144672]
[1754308937382,2.09658997,3558.0,3557.9,2.95144672]
[1754308937584,1.01768997,3558.0,3557.9,0.1408]
[1754308937784,1.01768997,3558.0,3557.9,2.95144672]
[1754308938500,1.01768997,3558.0,3557.9,3.40254672]
[1754308938799,1.01768997,3558.0,3557.9,7.09045058]
[1754308939848,1.01768997,3558.0,3557.9,6.61055058]
[1754308940179,1.01768997,3558.0,3557.9,6.15945058]
[1754308941449,1.01768997,3558.0,3557.9,13.15945058]
[1754308941948,1.01768997,3558.0,3557.9,13.61055058]
[1754308942174,1.01768997,3558.0,3557.9,14.09045058]
[1754308944185,1.01768997,3558.0,3557.9,13.15945058]
[1754308945175,1.74429726,3558.9,3558.8,2.80993593]
[1754308945975,1.74429726,3558.9,3558.8,2.95073593]
[1754308946178,1.74429726,3558.9,3558.8,0.1408]
[1754308946396,1.74429726,3558.9,3555.0,3.10867755]
[1754308946397,3.48557699,3558.9,3557.1,2.8112633]
[1754308946592,1.55752419,3558.8,3557.8,0.1408]
[1754308946817,1.55752419,3558.8,3557.7,0.1408]
[1754308946818,0.1408,3558.2,3557.7,0.1408]
[1754308947021,1.5224,3558.1,3556.6,0.21133833]
[1754308947165,4.48520773,3558.0,3557.9,7.0]
[1754308947367,1.67464,3558.0,3557.9,7.0]
[1754308947630,1.80419757,3558.0,3557.9,5.5946]
[1754308948063,4.6147653,3558.0,3557.9,5.5946]
[1754308948267,4.6147653,3558.0,3557.4,2.81103777]
[1754308948463,0.4435,3557.9,3557.4,3.0]
[1754308948772,1.5224,3557.9,3557.4,3.0]
[1754308949000,2.9516156,3558.0,3557.4,2.81102604]
[1754308949164,1.6632,3557.8,3557.5,2.81095381]
[1754308949500,0.1408,3557.8,3557.6,2.81088115]
[1754308949668,1.2197,3557.8,3557.6,2.81088115]
[1754308950006,1.2197,3557.8,3557.4,2.81103502]
[1754308950220,1.0789,3557.7,3557.4,2.81103502]
[1754308950688,1.2197,3558.0,3557.5,2.81095767]
[1754308951001,1.2197,3558.0,3557.8,2.8107008]
[1754308951212,1.0789,3558.0,3557.8,2.8107008]
[1754308951367,1.2056,3557.9,3557.7,0.1408]
[1754308951568,1.6427,3557.8,3557.1,2.81120763]
[1754308951902,4.59437371,3557.7,3557.2,0.1408]
[1754308952105,4.59437371,3557.7,3557.4,2.81097886]
[1754308952106,1.7835,3557.7,3557.4,2.81097886]
[1754308952247,1.7835,3557.7,3557.3,2.81109178]